Cogmind - Beta 12 @@@ ROGUE MODE // 2023.12.09 @ 14:20:13 Player: morimori Result: Destroyed by H-61 Shepherd with Heavy Assault Cannon Performance ------------- Evolutions (4) 2000 Regions Visited (8) 1600 Robots Destroyed (28) 140 Value Destroyed (481) 481 Prototype IDs (8) 160 Alien Tech Used (0) 0 Bonus (500) 500 TOTAL SCORE: 4881 Bonus ------- Entered DSFs 500 Cogmind --------- Core Integrity 0/850 Matter 300/300 Energy 100/100 System Corruption 3% Temperature Cool (0) Movement Core (350) Ox6 Location -6/DSF Parts ------- > --- POWER (1) -------- (None) > --- PROPULSION (5) --- (None) > --- UTILITY (7) ------ Large Storage Unit > --- WEAPON (2) ------- (None) > --- INVENTORY (15) --- Light Ion Engine Light Ion Engine Light Ion Engine Coolant Injector Improved Sensor Array Improved Terrain Scanner Improved Terrain Scanner Improved Propulsion Shielding Hacking Suite Hacking Suite Hacking Suite Authchip [Propulsion] Authchip [Processor] Shock Rifle Shock Rifle Peak State ------------ > --- POWER ------------ Light Deuterium Engine > --- PROPULSION ------- Hover Unit Hover Unit Hover Unit Improved Hover Unit Aerolev Unit > --- UTILITY ---------- Large Storage Unit Improved Propulsion Shielding Improved Propulsion Shielding Hacking Suite System Shield System Shield System Shield > --- WEAPON ----------- Shock Rifle Light Assault Rifle > --- INVENTORY -------- Light Ion Engine Light Ion Engine Light Ion Engine Coolant Injector Improved Sensor Array Improved Terrain Scanner Improved Terrain Scanner Improved Propulsion Shielding Hacking Suite Hacking Suite Hacking Suite Authchip [Propulsion] Authchip [Processor] Shock Rifle Shock Rifle [Rating: 39] Favorites ----------- Power Light Ion Engine Engine Light Ion Engine Power Core Nuclear Core Propulsion Improved Hover Unit Wheel Compact Wheel Hover Unit Improved Hover Unit Utility System Shield Device Terrain Scanner Storage Large Storage Unit Processor Advanced Targeting Computer Hackware System Shield Protection Improved Propulsion Shielding Weapon Small Laser Energy Gun Small Laser Ballistic Gun Assault Rifle Special Weapon Mining Laser Build | -11 -10 -10 -9 -9 -8 -7 -6 -6 ------- Run | Jun Mat Min Mat Min Mat Fac Fac DSF Slots Evolved 8 | . . . 2 . 2 2 2 . Power . | . . . . . . . . . Propulsion 3 | . . . 2 . . 1 . . Utility 5 | . . . . . 2 1 2 . Weapon . | . . . . . . . . . Parts Attached 42 | 5 9 . 9 3 4 9 1 2 Power 7 | 1 1 . 1 1 2 1 . . Engine 6 | 1 1 . 1 1 1 1 . . Core 1 | . . . . . 1 . . . Reactor . | . . . . . . . . . Propulsion 13 | 2 3 . 4 . 1 2 . 1 Treads . | . . . . . . . . . Leg . | . . . . . . . . . Wheel 3 | 2 1 . . . . . . . Hover 10 | . 2 . 4 . 1 2 . 1 Flight . | . . . . . . . . . Utility 12 | 1 4 . 2 . 1 2 1 1 Device 1 | . 1 . . . . . . . Storage 3 | 1 2 . . . . . . . Processor 1 | . . . 1 . . . . . Hackware 4 | . . . 1 . . 1 1 1 Protection 3 | . 1 . . . 1 1 . . Artifact . | . . . . . . . . . Weapon 10 | 1 1 . 2 2 . 4 . . Energy Gun 3 | . 1 . . . . 2 . . Energy Cannon . | . . . . . . . . . Ballistic Gun 6 | 1 . . 1 2 . 2 . . Ballistic Cannon . | . . . . . . . . . Launcher . | . . . . . . . . . Special Weapon 1 | . . . 1 . . . . . Impact Weapon . | . . . . . . . . . Slashing Weapon . | . . . . . . . . . Piercing Weapon . | . . . . . . . . . Special Melee Weapon . | . . . . . . . . . Unidentified Prototypes 1 | . . . . . 1 . . . Corrupted Parts 2 | . . . . . . 2 . . System Corruption 8 | . . . . . . 8 . . Parts Lost 13 | . . . 2 1 1 . . 9 Power . | . . . . . . . . . Propulsion 8 | . . . 2 . 1 . . 5 Utility 3 | . . . . . . . . 3 Weapon 2 | . . . . 1 . . . 1 Highest Loss Streak 9 | . . . 2 1 1 . . 9 To Critical Strikes . | . . . . . . . . . Average Slot Usage (%) 95 | . 99 100 98 100 80 96 90 53 Engine 11 | . 13 14 11 11 8 7 6 3 Wheel 10 | . 22 . . . . . . . Hover 22 | . 5 28 43 44 36 38 33 15 Device 4 | . 10 . . . . . . . Storage 11 | . 14 14 11 11 9 7 6 6 Hackware 6 | . . . 8 11 9 14 17 15 Protection 5 | . 3 14 . . 7 15 13 5 Energy Gun 10 | . 14 14 11 10 . 7 6 2 Ballistic Gun 8 | . 14 14 2 1 10 4 6 3 Special Weapon 2 | . . . 8 9 . . . . Naked Turns . | . . . . . . . . . Heaviest Build 93 | 12 93 31 27 25 26 33 33 33 Greatest Support 33 | 32 32 14 28 26 27 33 33 33 Greatest Overweight (x) 6 | 3 3 2 . . 1 . . 6 Average Overweight (x) . | . 2 2 . . . . . 1 Largest Inventory Capacity 25 | 8 25 15 15 15 15 15 15 15 Average Capacity 16 | 7 20 15 15 15 15 15 15 15 Most Carried 25 | 8 25 15 15 15 15 15 15 15 Average Carried 14 | 3 17 15 14 13 14 14 14 14 Final Capacity 15 | 8 15 15 15 15 15 15 15 15 Final Carried 15 | 8 15 15 13 15 13 15 11 15 Class Distribution -------------------- 63% | Mutant 24% | Scavenger-Mutant 12% | Hacker-Mutant Dominant Class ---------------- Mutant | -10/Materials Mutant | -10/Mines Mutant | -9/Materials Scavenger-Mutant | -9/Mines Scavenger-Mutant | -8/Materials Hacker-Mutant | -7/Factory Hacker-Mutant | -6/Factory Hacker-Mutant | -6/DSF Resources | -11 -10 -10 -9 -9 -8 -7 -6 -6 ----------- Run | Jun Mat Min Mat Min Mat Fac Fac DSF Matter Collected 699 | 283 184 . 72 57 10 . . 93 Remotely . | . . . . . . . . . Salvage Created 634 | 152 283 . 72 70 . 57 . . Parts 60 | 10 27 . 8 9 . 6 . . Haulers Intercepted . | . . . . . . . . . Recyclers Shooed . | . . . . . . . . . Parts Field Recycled . | . . . . . . . . . Retrieved Matter . | . . . . . . . . . Parts Self-Destructed . | . . . . . . . . . Prevented . | . . . . . . . . . Kills | -11 -10 -10 -9 -9 -8 -7 -6 -6 ------- Run | Jun Mat Min Mat Min Mat Fac Fac DSF Combat Hostiles Destroyed 16 | . 10 . 2 4 . . . . Guns 15 | . 10 . 1 4 . . . . Cannons 1 | . . . 1 . . . . . Classes Destroyed 7 | 2 4 . 1 . . . . . Tunneler 4 | 4 . . . . . . . . Recycler 1 | 1 . . . . . . . . Operator 3 | . 1 . . . . 2 . . Watcher 4 | . 2 . 1 . . 1 . . Swarmer 10 | . 6 . . 4 . . . . Grunt 4 | . 4 . . . . . . . Sentry 2 | . . . 2 . . . . . Best Kill Streak 4 | 4 3 . 1 4 . 1 . . Combat Bots Only 4 | . 3 . 1 4 . . . . Max Kills in Single Turn 2 | 1 2 . 1 1 . 1 . . Gunslinging 1 | . 1 . . . . . . . Exploded . | . . . . . . . . . Melee . | . . . . . . . . . Uniques/NPCs Destroyed . | . . . . . . . . . Combat | -11 -10 -10 -9 -9 -8 -7 -6 -6 -------- Run | Jun Mat Min Mat Min Mat Fac Fac DSF Damage Taken 2148 | . 266 . 227 117 145 97 . 1296 Core 1118 | . 86 . 35 41 17 59 . 880 Absorbed by Shields . | . . . . . . . . . Redirected to Shielding 219 | . . . . . 57 24 . 138 Regen/Repaired (Parts) 12 | . 12 . . . . . . . Core Remaining (%) 86 | 100 . 65 . 81 96 91 . . Volleys Fired 79 | 11 29 . 15 16 3 5 . . Largest 2 | 1 2 . 2 2 1 2 . . Hottest 140 | 20 60 . 140 100 20 100 . . Shots Fired 127 | 11 57 . 26 22 3 8 . . Gun 106 | 11 57 . 15 12 3 8 . . Cannon . | . . . . . . . . . Launcher . | . . . . . . . . . Special 21 | . . . 11 10 . . . . Kinetic 52 | 11 29 . 2 6 3 1 . . Thermal 68 | . 28 . 24 16 . . . . Explosive . | . . . . . . . . . Electromagnetic 7 | . . . . . . 7 . . Robot Hit Streak 24 | 6 24 . 5 5 1 2 . . Robot Miss Streak 5 | 1 5 . 3 3 1 2 . . Penetration Max . | . . . . . . . . . Secondary Targets 3 | . 1 . . 2 . . . . Max Gunslinging Chain 1 | . 1 . . 1 . . . . Shots Hit Robots 72 | 9 38 . 15 5 1 4 . . Core Hits 38 | 6 17 . 7 5 . 3 . . Critical Kills . | . . . . . . . . . Critical Parts Destroyed . | . . . . . . . . . Critical Strikes 1 | . . . . . . 1 . . Corrupt 1 | . . . . . . 1 . . Melee Attacks . | . . . . . . . . . Impact . | . . . . . . . . . Slashing . | . . . . . . . . . Piercing . | . . . . . . . . . Sneak Attacks . | . . . . . . . . . Combat Hostiles . | . . . . . . . . . Follow-up Attacks . | . . . . . . . . . Damage Inflicted 988 | 118 449 . 232 49 6 133 . 1 Guns 836 | 118 449 . 112 49 6 102 . . Cannons . | . . . . . . . . . Explosions 31 | . . . . . . 31 . . Melee . | . . . . . . . . . Ramming 1 | . . . . . . . . 1 Kinetic 374 | 118 223 . 13 14 6 . . . Thermal 511 | . 226 . 219 35 . 31 . . Explosive . | . . . . . . . . . Electromagnetic 102 | . . . . . . 102 . . Impact . | . . . . . . . . . Slashing . | . . . . . . . . . Piercing . | . . . . . . . . . Highest Corruption 8 | . 1 1 . . . 8 . 3 Average Corruption 2 | . 1 1 . . . 7 . 3 Corruption Purged . | . . . . . . . . . Corruption Blocked . | . . . . . . . . . Effects 11 | . 3 . . . . 7 . 1 Message Errors 3 | . . . . . . 3 . . Matter Fused 4 | . 2 . . . . 1 . 1 Heat Flow Errors 2 | . 1 . . . . 1 . . Data Loss (minor) 1 | . . . . . . 1 . . Misfires 1 | . . . . . . 1 . . Overload Shots . | . . . . . . . . . Overflow Damage 14 | . . . 14 . . . . . Projectiles 14 | . . . 14 . . . . . Explosions . | . . . . . . . . . Melee . | . . . . . . . . . Knockbacks . | . . . . . . . . . Impact . | . . . . . . . . . Kinetic . | . . . . . . . . . Secondary . | . . . . . . . . . Self-Inflicted Damage . | . . . . . . . . . Shots . | . . . . . . . . . Rammed 2 | . . . . . . . . 2 Targets Rammed 2 | . . . . . . . . 2 Kicked . | . . . . . . . . . Crushed . | . . . . . . . . . Highest Temperature 261 | . 109 . 261 98 2 195 . . Average Temperature 59 | . 34 . 85 47 2 64 . . Received Heat Transfer 228 | . 102 . 63 . 63 . . . Siege Activations . | . . . . . . . . . Robots Corrupted . | . . . . . . . . . Combat Hostiles . | . . . . . . . . . Parts Fried . | . . . . . . . . . Impact Corruptions . | . . . . . . . . . Robots Melted . | . . . . . . . . . Combat Hostiles . | . . . . . . . . . Parts Melted . | . . . . . . . . . Heat Transferred 1175 | . 525 . 475 75 . 100 . . Parts Sabotaged . | . . . . . . . . . Parts Stolen . | . . . . . . . . . Parts Stripped . | . . . . . . . . . Power Chain Reactions 1 | . . . . . . 1 . . Missiles Intercepted . | . . . . . . . . . Alert | -11 -10 -10 -9 -9 -8 -7 -6 -6 ------- Run | Jun Mat Min Mat Min Mat Fac Fac DSF Peak Influence 255 | 25 255 9 114 179 211 203 115 80 Initial 99 | . 16 9 3 44 69 27 99 80 Average 88 | 11 109 9 68 64 123 103 106 34 Maximum Alert Level 1 | . 1 . . . 1 1 . . Low Security (%) 94 | 100 90 100 100 100 92 95 100 100 Level 1 5 | . 9 . . . 7 4 . . Level 2 . | . . . . . . . . . Level 3 . | . . . . . . . . . Level 4 . | . . . . . . . . . Level 5 . | . . . . . . . . . High Security . | . . . . . . . . . Max Security . | . . . . . . . . . Squads Dispatched 9 | . 3 . 2 . 1 2 . 1 Investigation 4 | . 1 . 1 . . 2 . . Extermination . | . . . . . . . . . Reinforcement 5 | . 2 . 1 . 1 . . 1 Assault . | . . . . . . . . . Garrison . | . . . . . . . . . Intercept . | . . . . . . . . . Searches Triggered . | . . . . . . . . . Construction Impeded . | . . . . . . . . . Haulers Reinforced . | . . . . . . . . . Active Scanning Responses . | . . . . . . . . . Cargo Convoy Interrupts . | . . . . . . . . . Stealth | -11 -10 -10 -9 -9 -8 -7 -6 -6 --------- Run | Jun Mat Min Mat Min Mat Fac Fac DSF Distress Signals 3 | . 2 . . . 1 . . . Communications Jammed . | . . . . . . . . . Distress Signals . | . . . . . . . . . Times Spotted 57 | . 15 . 8 7 16 6 . 5 Peak Tracking Total 12 | . 4 . 4 4 12 3 . 4 Tactical Retreats 6 | . 1 . . 1 2 1 . 1 Traps | -11 -10 -10 -9 -9 -8 -7 -6 -6 ------- Run | Jun Mat Min Mat Min Mat Fac Fac DSF Traps Triggered 4 | . 2 . . . . 1 . 1 Indirectly . | . . . . . . . . . Trap Hack Attempts . | . . . . . . . . . Triggered . | . . . . . . . . . Disarmed . | . . . . . . . . . Reprogrammed . | . . . . . . . . . Reused . | . . . . . . . . . Traps Extracted . | . . . . . . . . . Installed . | . . . . . . . . . Triggered . | . . . . . . . . . Machines | -11 -10 -10 -9 -9 -8 -7 -6 -6 ---------- Run | Jun Mat Min Mat Min Mat Fac Fac DSF Machines Disabled . | . . . . . . . . . Max in Single Turn . | . . . . . . . . . Machines Repaired . | . . . . . . . . . Machines Sabotaged . | . . . . . . . . . Overloaded Fab Kills . | . . . . . . . . . Hacking | -11 -10 -10 -9 -9 -8 -7 -6 -6 --------- Run | Jun Mat Min Mat Min Mat Fac Fac DSF Machines Accessed 22 | . 4 . 2 . 4 10 2 . Terminals 14 | . 3 . 1 . 3 5 2 . Fabricators 2 | . . . . . . 2 . . Repair Stations 2 | . 1 . . . . 1 . . Recycling Units 2 | . . . . . . 2 . . Scanalyzers 2 | . . . 1 . 1 . . . Garrison Access . | . . . . . . . . . Total Hacks 74 | . 12 . 3 . 18 34 7 . Successful 34 | . 7 . . . 11 13 3 . Failed 40 | . 5 . 3 . 7 21 4 . Catastrophic 12 | . 1 . . . 3 7 1 . Database Lockouts . | . . . . . . . . . Manual 23 | . 6 . . . 7 7 3 . Terminals 47 | . 10 . 2 . 10 18 7 . Fabricators 9 | . . . . . . 9 . . Repair Stations 4 | . 2 . . . . 2 . . Recycling Units 5 | . . . . . . 5 . . Scanalyzers 9 | . . . 1 . 8 . . . Garrison Access . | . . . . . . . . . Terminal Hacks 21 | . 5 . . . 5 8 3 . Record 1 | . . . . . . 1 . . Part Schematic 5 | . 2 . . . 1 2 . . Robot Analysis 1 | . . . . . 1 . . . Prototype ID Bank 3 | . 2 . . . . 1 . . Open DSF 1 | . . . . . . . 1 . Terminal Index 2 | . . . . . . 1 1 . Fabricator Index 2 | . . . . . . 1 1 . Unreport Threat 1 | . . . . . 1 . . . Locate Traps 2 | . 1 . . . 1 . . . Zone Layout 3 | . . . . . 1 2 . . Fabricator Hacks 2 | . . . . . . 2 . . Load Schematic 1 | . . . . . . 1 . . Build 1 | . . . . . . 1 . . Repair Station Hacks 2 | . 2 . . . . . . . Scan Component 1 | . 1 . . . . . . . Repair 1 | . 1 . . . . . . . Recycling Unit Hacks 3 | . . . . . . 3 . . Process 2 | . . . . . . 2 . . Retrieve Matter 1 | . . . . . . 1 . . Scanalyzer 6 | . . . . . 6 . . . Insert Component 3 | . . . . . 3 . . . Analyze 3 | . . . . . 3 . . . Garrison Access Hacks . | . . . . . . . . . Unauthorized Hacks . | . . . . . . . . . Terminals . | . . . . . . . . . Fabricators . | . . . . . . . . . Repair Stations . | . . . . . . . . . Recycling Units . | . . . . . . . . . Scanalyzers . | . . . . . . . . . Garrison Access . | . . . . . . . . . Data Cores Recovered 2 | . . . . . . 2 . . Used 2 | . . . . . . 2 . . Hacking Detections 20 | . 4 . 2 . 4 9 1 . Full Trace Events 4 | . 1 . 1 . . 2 . . Feedback Events . | . . . . . . . . . Feedback Blocked . | . . . . . . . . . Robot Schematics Acquired . | . . . . . . . . . Robots Built . | . . . . . . . . . Authchips . | . . . . . . . . . Time . | . . . . . . . . . Total Robot Build Rating . | . . . . . . . . . Part Schematics Acquired 7 | . 2 . . . 3 2 . . Parts Built 1 | . . . . . . 1 . . Authchips . | . . . . . . . . . Time 62 | . . . . . . 62 . . Total Part Build Rating 7 | . . . . . . 7 . . Parts Repaired 1 | . 1 . . . . . . . Time 26 | . 26 . . . . . . . Parts Recycled . | . . . . . . . . . Recycled Matter 75 | . . . . . . 75 . . Retrieved Matter 31 | . . . . . . 31 . . Retrieved Components . | . . . . . . . . . Parts Scanalyzed 3 | . . . . . 3 . . . Part Schematics Acquired 2 | . . . . . 2 . . . Parts Damaged . | . . . . . . . . . Bothacking | -11 -10 -10 -9 -9 -8 -7 -6 -6 ------------ Run | Jun Mat Min Mat Min Mat Fac Fac DSF Used RIF Installer . | . . . . . . . . . Robots Hacked . | . . . . . . . . . Non-combat . | . . . . . . . . . Combat . | . . . . . . . . . Robot Hacks Applied . | . . . . . . . . . Relay Couplers Released . | . . . . . . . . . Fabnet Peak Effective % . | . . . . . . . . . Robots Rewired . | . . . . . . . . . Allies Hacked . | . . . . . . . . . Hacks Repelled . | . . . . . . . . . Allies | -11 -10 -10 -9 -9 -8 -7 -6 -6 -------- Run | Jun Mat Min Mat Min Mat Fac Fac DSF Total Allies . | . . . . . . . . . Largest Group . | . . . . . . . . . Highest-Rated Group . | . . . . . . . . . Highest-Rated Ally . | . . . . . . . . . Total Orders . | . . . . . . . . . Ally Attacks . | . . . . . . . . . Total Damage . | . . . . . . . . . Kills . | . . . . . . . . . Allies Corrupted . | . . . . . . . . . Allies Melted . | . . . . . . . . . Intel | -11 -10 -10 -9 -9 -8 -7 -6 -6 ------- Run | Jun Mat Min Mat Min Mat Fac Fac DSF Robot Analysis Total 1 | . . . . . 1 . . . Derelict Logs Recovered 2 | . . . . 2 . . . . Drone Launches . | . . . . . . . . . Drone Recoveries . | . . . . . . . . . Exploration | -11 -10 -10 -9 -9 -8 -7 -6 -6 ------------- Run | Jun Mat Min Mat Min Mat Fac Fac DSF Turns Passed 2298 | 125 994 57 275 237 132 342 32 104 Spaces Moved 2264 | 83 541 33 341 351 229 561 69 56 Core 16 | 6 . . . . . . . 10 Treads . | . . . . . . . . . Legs . | . . . . . . . . . Wheels 522 | 77 445 . . . . . . . Hover 1726 | . 96 33 341 351 229 561 69 46 Flight . | . . . . . . . . . Fastest Speed 42 | 50 100 176 48 48 45 42 42 42 Average Speed 72 | 100 134 176 48 48 47 42 42 129 Slowest Speed 350 | 200 176 176 48 48 112 42 42 350 Overloaded Moves . | . . . . . . . . . Propulsion Burnouts . | . . . . . . . . . Robots Hopped . | . . . . . . . . . Cave-ins Triggered . | . . . . . . . . . Exploration Rate (%) 34 | 4 83 14 24 70 37 15 3 63 Regions Visited 8 Branch Regions 2 Pre-discovered Areas 1 | . . . . 1 . . . . Known Exits Taken 1 | . . . . . . . 1 . Unknown Exits Taken 7 | 1 1 1 1 1 1 1 . . Scrap Searched 2 | . . . . 2 . . . . Spaces Dug 12 | . . . 2 10 . . . . Terrain Destroyed 14 | . . . 4 10 . . . . Melee . | . . . . . . . . . Projectile 14 | . . . 4 10 . . . . AOE . | . . . . . . . . . Terrain Rammed . | . . . . . . . . . Walls Destroyed . | . . . . . . . . . Machines Disabled . | . . . . . . . . . Actions | -11 -10 -10 -9 -9 -8 -7 -6 -6 --------- Run | Jun Mat Min Mat Min Mat Fac Fac DSF Total 2752 | 112 756 32 408 377 251 661 72 83 Wait 268 | 2 143 . 28 6 9 76 . 4 Move 2256 | 82 540 32 340 350 228 560 68 56 Hop . | . . . . . . . . . Pick Up 51 | 10 20 . 7 1 2 5 . 6 Fast Attach 10 | 5 1 . 1 1 . 2 . . Attach 22 | . 5 . 5 1 3 5 1 2 Detach 10 | . 3 . 2 1 1 3 . . Swap 10 | . 3 . 3 1 1 2 . . Drop 31 | 2 12 . 7 . 4 3 3 . Fire 79 | 11 29 . 15 16 3 5 . . Melee . | . . . . . . . . . Ram 2 | . . . . . . . . 2 Kick . | . . . . . . . . . Crush . | . . . . . . . . . Escape Stasis 13 | . . . . . . . . 13 Rewire . | . . . . . . . . . Trap . | . . . . . . . . . Miscellaneous . | . . . . . . . . . Route ------- -11/Junkyard -10/Materials (discovered 4 exits: *Mat x2 / [*Min x2]) -10/Mines -9/Materials -9/Mines (discovered 2 exits: *Mat x2) -8/Materials -7/Factory -6/Factory -6/DSF History --------- Turn | Location | Event 22 | -11/Junkyard | Discovered new exit (range 15) 126 | -11/Junkyard | Entered Materials 330 | -10/Materials | Build established: Mutant 368 | -10/Materials | Discovered new exit (range 13) 558 | -10/Materials | Discovered new exit (range 14) 698 | -10/Materials | Discovered new exit (range 6) 787 | -10/Materials | Discovered new exit (range 10) 828 | -10/Materials | Repaired Hover Unit 1120 | -10/Materials | Entered Mines 1172 | -10/Mines | Discovered new exit (range 5) 1177 | -10/Mines | Entered Materials 1177 | -9/Materials | Evolved 2 slots: Propulsion x2 1437 | -9/Materials | Discovered new exit (range 16) 1452 | -9/Materials | Entered Mines 1459 | -9/Mines | Met a Derelict bent on vengeance 1459 | -9/Mines | Found a damaged Exp. Sensor Array with a note attached 1460 | -9/Mines | Found Prototype Device 1636 | -9/Mines | Discovered new exit (range 13) 1637 | -9/Mines | Learned Materials emergency access door positions 1681 | -9/Mines | Discovered new exit (range 16) 1689 | -9/Mines | Entered Materials 1689 | -8/Materials | Evolved 2 slots: Utility x2 1741 | -8/Materials | Build established: Scavenger-Mutant 1808 | -8/Materials | Identified Exp. Sensor Array 1816 | -8/Materials | Discovered new exit (range 15) 1821 | -8/Materials | Entered Factory 1821 | -7/Factory | Evolved 2 slots: Propulsion x1, Utility x1 1952 | -7/Factory | Discovered new exit (range 5) 2130 | -7/Factory | Fabricated Cld. Field Propulsion Drive (x1) 2163 | -7/Factory | Entered another Factory area 2163 | -6/Factory | Evolved 2 slots: Utility x2 2193 | -6/Factory | Identified exit to DSF 2195 | -6/Factory | Entered DSF 2235 | -6/DSF | Additional patrols routed to DSF 2265 | -6/DSF | Core integrity fell below 50% 2288 | -6/DSF | Lost 9 parts (5n3u1w) 2290 | -6/DSF | Core integrity fell below 20% 2299 | -6/DSF | Destroyed by H-61 Shepherd with Heavy Assault Cannon Last Messages --------------- 02239_ Imp. Propulsion Shielding destroyed. 02239_ Knocked back. 02240_ Acquired 4 matter. 02240_ Lgt. Deuterium Engine severed. 02242_ Hover Unit destroyed. 02243_ Acquired 71 matter. 02244_ Aerolev Unit severed. 02244_ Acquired 4 matter. 02251_ Penetrated by Slug. 02251_ Knocked back. 02254_ Lgt. Assault Rifle severed. 02257_ Hover Unit destroyed. 02259_ System Shield severed. 02265_ Hacking Suite severed. 02269_ Slammed into C-17 Slicer. 02275_ System corrupted: Matter fused (-7). 02279_ Acquired 3 matter. 02286_ Acquired 4 matter. 02294_ Knocked back. 02297_ Slammed into C-17 Slicer. Map ----- +----------------------------------------------------+ | ???????????????????????????????????????? | | ???????????????????????????????????????? | | ??????????????????????????????????????## | | ?????????????????????????????????????#"" | | ?????????????????????????????????????#"# | | ????????????????????#########???????##"# | | ????????"""?????###?# !!! #########""" | | ????????""""## #!!!# !!! # # ##""" | | ????????" | | ????????" | | ????????" ?#!!# ### % ### # ## | | ????????# #????#???### ### # ### | | ???????## #????????# !!########?# | | ????????! ????????# !!#???????? | | ????????! ????????# % !!#???????? | | ???????## ###??????### "##???????## | | ???????#! !!#??????#!! #???????? | | ???????#! !!#??????#!! !!#???????? | | ???????#! !!???????#!! !#???????? | | ??????### ############ ###????????# | | ??????# %## #!!!##A ##?????????# | | ??????# ## #!!!#;% ##[[[# ???? | | ??????#!! H ? | | ??????#!! [ | | ??????#!! c * ! ? | | ?????#"!!% #;%c@#***##%= ##!!!# ## ? | | ?????##!! #;%c%#***### ##?!!!#?? #??? | | ??????###############?# #???###??????? | | ??????????????????????! ==???????????? | | ??????????????????????! ==#??????????? | | ??????????????????????! ==#??????????? | | ?????????????????????## ###??????????? | | ?????????????????????? ????????????? | | ?????????????????????? ????????????? | | ?????????????????????? ???????????? | | ??????????????????????# ##???????????? | | ??????????????????????? ?????????????? | | ???????????????????????????????????????? | | ???????????????????????????????????????? | | ???????????????????????????????????????? | | ???????????????????????????????????????? | | ???????????????????????????????????????? | | ???????????????????????????????????????? | | ???????????????????????????????????????? | | ???????????????????????????????????????? | | ???????????????????????????????????????? | | ???????????????????????????????????????? | | ???????????????????????????????????????? | | ???????????????????????????????????????? | | | +----------------------------------------------------+ Best States ------------- Heat Dissipation 37 Energy Generation 14 Energy Capacity 250 Matter Stores 300 Matter Capacity 300 Sight Range 16 Terrain Scan Range 14 Terrain Scan Density 10 Armor Coverage 150 Propulsion Shielding 66 Evasion (%) 56 Targeting Accuracy 8 Offensive Hacking 10 Defensive Hacking 30 Authchip Count 2 Item Schematics ----------------- Structural Scanner | -10/Materials | Hacked Terrain Scanner | -10/Materials | Hacked Hacking Suite | -8/Materials | Hacked Imp. Terrain Scanner | -8/Materials | Scanalyzed System Shield | -8/Materials | Scanalyzed Imp. Terrain Scan Processor | -7/Factory | Hacked Aerolev Unit | -7/Factory | Hacked Robot Schematics ------------------ None Fabricated ------------ Cld. Field Propulsion Drive | x1 | -7/Factory | Preloaded Alien Tech Used ----------------- None Achievements -------------- None Challenges ------------ None Game ------ Seed ZioniteThrowingSabre Manual? 0 Play Time 00:47:22 Cumulative 105.4 hours Start 2023.12.09 @ 13:29:39 End 2023.12.09 @ 14:20:13 Sessions 1 Manual Loads 0 Difficulty Rogue Special Mode None Game No. 68 Rogue 68 Adventurer 0 Explorer 0 Win Type - Total 0 Types 0/0/0/0/0/0/0/0/0 Lore% 39 Gallery% 43 Achievement% 36 Wizard Run 0 Options --------- ASCII 0 Keyboard 1 Movement Vi Keybinds 0 Fullscreen 2 Font 18/SmallcapsGlow Map View 76x50 Tactical HUD 1 Map Filters NONE Filters NONE Steam 1 RUN: 4e7d5d99-e1da-4342-8c30-3451a302e334